Cogmind - Beta 11 X8 @@@ ROGUE MODE // 2021.11.07 @ 01:47:59 Player: Runia Result: Destroyed by 8R-AWN with 8R-AWN's Boregun Performance ------------- Evolutions (1) 500 Regions Visited (4) 800 Robots Destroyed (78) 390 Value Destroyed (1647) 1647 Prototype IDs (26) 520 Alien Tech Used (0) 0 Bonus (121) 121 TOTAL SCORE: 3978 Bonus ------- High Alert Combat Kills 134 Aligned with FarCom 300 Friendly Fire -313 Cogmind --------- Core Integrity 0/400 Matter 320/500 Energy 57/100 System Corruption 0% Temperature Cool (0) Movement Treading (240) Ox1 Location -9/Exiles Parts ------- > --- POWER (1) -------- (None) > --- PROPULSION (2) --- Light Treads > --- UTILITY (4) ------ Large Storage Unit High-capacity Matter Pod Salvage Targeting Computer > --- WEAPON (2) ------- Katana Katana > --- INVENTORY (15) --- Light Treads Assault Rifle Assault Rifle Assault Rifle Autogun Autogun Mini Grenade Launcher Plasma Cutter Katana Katana Peak State ------------ > --- POWER ------------ Cooled Ion Engine > --- PROPULSION ------- Light Treads Light Treads > --- UTILITY ---------- Large Storage Unit Salvage Targeting Computer Light Armor Plating Light Armor Plating > --- WEAPON ----------- Autogun Katana > --- INVENTORY -------- Reinforced Deuterium Engine Fission Core Light Treads High-capacity Matter Pod Assault Rifle Assault Rifle Assault Rifle Autogun Mini Grenade Launcher Plasma Cutter Plasma Cutter Katana Katana Katana [Rating: 18] Favorites ----------- Power Cooled Ion Engine Engine Cooled Ion Engine Propulsion Light Treads Treads Light Treads Leg Improved Aluminum Leg Wheel Compact Wheel Utility Large Storage Unit Device Heat Sink Storage Large Storage Unit Processor Salvage Targeting Computer Protection Light Armor Plating Weapon Autogun Energy Gun Medium Laser Ballistic Gun Autogun Launcher Mini Grenade Launcher Special Weapon Plasma Cutter Slashing Weapon Katana Build | -11 -10 -9 -9 -9 ------- Run | Scr Mat Mat Min Exi Slots Evolved 2 | . . 2 . . Power . | . . . . . Propulsion . | . . . . . Utility 2 | . . 2 . . Weapon . | . . . . . Parts Attached 56 | 2 10 32 . 12 Power 2 | . . 2 . . Engine 2 | . . 2 . . Core . | . . . . . Reactor . | . . . . . Propulsion 14 | 2 3 9 . . Treads 11 | 2 . 9 . . Leg 2 | . 2 . . . Wheel 1 | . 1 . . . Hover . | . . . . . Flight . | . . . . . Utility 13 | . 4 7 . 2 Device 5 | . 2 3 . . Storage 2 | . 1 . . 1 Processor 1 | . . 1 . . Hackware . | . . . . . Protection 5 | . 1 3 . 1 Artifact . | . . . . . Weapon 27 | . 3 14 . 10 Energy Gun 2 | . 2 . . . Energy Cannon . | . . . . . Ballistic Gun 11 | . 1 9 . 1 Ballistic Cannon . | . . . . . Launcher 7 | . . 5 . 2 Special Weapon 2 | . . . . 2 Impact Weapon . | . . . . . Slashing Weapon 5 | . . . . 5 Piercing Weapon . | . . . . . Special Melee Weapon . | . . . . . Unidentified Prototypes 1 | . . 1 . . Parts Lost 11 | . 2 4 . 5 Power 2 | . . 1 . 1 Propulsion 2 | . 1 . . 1 Utility 6 | . 1 3 . 2 Weapon 1 | . . . . 1 Highest Loss Streak 4 | . 1 2 . 4 Average Slot Usage (%) 94 | . 96 89 100 98 Engine 11 | . 14 11 11 10 Treads 17 | . 9 20 22 21 Leg 5 | . 15 1 . . Device 8 | . 6 14 11 1 Storage 12 | . 14 11 11 11 Processor 4 | . . 3 11 11 Protection 8 | . 5 5 11 19 Energy Gun 5 | . 15 1 . . Ballistic Gun 15 | . 12 19 22 12 Slashing Weapon 1 | . . . . 7 Naked Turns . | . . . . . Heaviest Build 43 | 12 30 43 38 40 Greatest Support 40 | 40 40 40 40 40 Greatest Overweight (x) 1 | . 1 1 . 1 Average Overweight (x) . | . . . . . Largest Inventory Capacity 15 | 8 15 15 15 15 Average Capacity 14 | 8 14 15 15 15 Most Carried 15 | 5 15 15 15 15 Average Carried 12 | 3 9 14 15 13 Final Capacity 15 | 8 15 15 15 15 Final Carried 15 | 2 14 15 15 10 Class Distribution -------------------- 57% | Scavenger-Mutant 42% | Mutant Dominant Class ---------------- Mutant | -10/Materials Scavenger-Mutant | -9/Materials Scavenger-Mutant | -9/Mines Scavenger-Mutant | -9/Exiles Resources | -11 -10 -9 -9 -9 ----------- Run | Scr Mat Mat Min Exi Matter Collected 1965 | 220 453 1029 263 . Remotely . | . . . . . Salvage Created 2488 | . 673 1703 112 . Parts 165 | . 42 115 8 . Haulers Intercepted 6 | . 1 5 . . Recyclers Shooed 5 | . 3 2 . . Parts Field Recycled . | . . . . . Retrieved Matter . | . . . . . Parts Self-Destructed . | . . . . . Prevented . | . . . . . Kills | -11 -10 -9 -9 -9 ------- Run | Scr Mat Mat Min Exi Combat Hostiles Destroyed 56 | . 15 34 3 4 Guns 40 | . 15 22 3 . AOE 16 | . . 12 . 4 Classes Destroyed 12 | . 7 4 . 1 Worker 3 | . . 3 . . Builder 3 | . 1 2 . . Tunneler 1 | . 1 . . . Hauler 6 | . 1 5 . . Recycler 5 | . 1 4 . . Operator 2 | . . 2 . . Watcher 5 | . 2 3 . . Swarmer 20 | . 3 14 3 . Grunt 23 | . 12 11 . . Brawler 2 | . . 2 . . Sentry 7 | . . 7 . . Assembled 4 | . . . . 4 Thug 1 | . . . 1 . Best Kill Streak 6 | . 3 6 3 4 Combat Bots Only 4 | . 3 4 3 4 Max Kills in Single Turn 4 | . 1 4 2 3 Gunslinging 1 | . . . 1 . Exploded 3 | . . 3 . 3 Melee . | . . . . . Uniques/NPCs Destroyed . | . . . . . Combat | -11 -10 -9 -9 -9 -------- Run | Scr Mat Mat Min Exi Damage Taken 2603 | . 707 1251 40 605 Core 537 | . 121 234 16 166 Absorbed by Shields . | . . . . . Core Remaining (%) 75 | 100 51 . . . Volleys Fired 190 | . 68 102 10 10 Largest 2 | . 2 2 2 2 Hottest 100 | . 100 100 46 46 Shots Fired 365 | . 136 195 20 14 Gun 344 | . 136 186 20 2 Cannon . | . . . . . Launcher 15 | . . 9 . 6 Special 6 | . . . . 6 Kinetic 266 | . 72 172 20 2 Thermal 84 | . 64 14 . 6 Explosive 15 | . . 9 . 6 Electromagnetic . | . . . . . Robot Hit Streak 14 | . 14 8 9 6 Robot Miss Streak 5 | . 5 3 1 2 Penetration Max . | . . . . . Secondary Targets 7 | . 3 3 1 . Max Gunslinging Chain 1 | . 1 1 1 . Shots Hit Robots 227 | . 85 120 16 6 Core Hits 133 | . 39 77 6 11 Critical Kills . | . . . . . Critical Parts Destroyed 1 | . 1 . . . Critical Strikes 3 | . 3 . . . Burn 2 | . 2 . . . Destroy 1 | . 1 . . . Melee Attacks 11 | . . . . 11 Impact . | . . . . . Slashing 11 | . . . . 11 Piercing . | . . . . . Sneak Attacks . | . . . . . Combat Hostiles . | . . . . . Follow-up Attacks . | . . . . . Damage Inflicted 5006 | . 1136 3281 276 313 Guns 3210 | . 1121 1813 276 . Cannons . | . . . . . Explosions 1745 | . . 1465 . 280 Melee 29 | . . . . 29 Ramming 18 | . 15 3 . . Kinetic 2586 | . 636 1674 276 . Thermal 628 | . 485 139 . 4 Explosive 1745 | . . 1465 . 280 Electromagnetic . | . . . . . Impact . | . . . . . Slashing 29 | . . . . 29 Piercing . | . . . . . Highest Corruption . | . . . . . Average Corruption . | . . . . . Corruption Purged . | . . . . . Overload Shots . | . . . . . Overflow Damage 129 | . . 129 . . Projectiles . | . . . . . Explosions 129 | . . 129 . . Melee . | . . . . . Knockbacks . | . . . . . Impact . | . . . . . Kinetic . | . . . . . Secondary . | . . . . . Self-Inflicted Damage 208 | . . 192 . 16 Shots 5 | . . 4 . 1 Rammed 1 | . 1 . . . Targets Rammed 2 | . 1 1 . . Kicked . | . . . . . Crushed 1 | . . 1 . . Highest Temperature 270 | . 270 18 . 8 Average Temperature 64 | . 68 8 . 6 Received Heat Transfer 666 | . 363 303 . . Siege Activations . | . . . . . Robots Corrupted . | . . . . . Combat Hostiles . | . . . . . Parts Fried . | . . . . . Impact Corruptions . | . . . . . Robots Melted . | . . . . . Combat Hostiles . | . . . . . Parts Melted 6 | . 3 3 . . Heat Transferred 1960 | . 1517 407 . 36 Parts Sabotaged . | . . . . . Parts Stolen . | . . . . . Parts Stripped . | . . . . . Power Chain Reactions . | . . . . . Missiles Intercepted . | . . . . . Alert | -11 -10 -9 -9 -9 ------- Run | Scr Mat Mat Min Exi Peak Influence 761 | . 218 761 381 . Initial 296 | . . 45 296 . Average 250 | . 84 378 371 . Maximum Alert Level 3 | . 1 3 1 . Low Security (%) 54 | 100 90 34 . . Level 1 20 | . 9 13 100 . Level 2 20 | . . 44 . . Level 3 3 | . . 7 . . Level 4 . | . . . . . Level 5 . | . . . . . High Security . | . . . . . Max Security . | . . . . . Squads Dispatched 8 | . 3 5 . . Investigation 3 | . 2 1 . . Extermination . | . . . . . Reinforcement 4 | . 1 3 . . Assault 1 | . . 1 . . Garrison . | . . . . . Intercept . | . . . . . Construction Impeded . | . . . . . Haulers Reinforced . | . . . . . Active Scanning Responses . | . . . . . Cargo Convoy Interrupts . | . . . . . Stealth | -11 -10 -9 -9 -9 --------- Run | Scr Mat Mat Min Exi Distress Signals 1 | . 1 . . . Communications Jammed . | . . . . . Distress Signals . | . . . . . Times Spotted 94 | . 25 56 3 10 Peak Tracking Total 12 | . 4 7 3 12 Tactical Retreats 5 | . . 2 . 3 Traps | -11 -10 -9 -9 -9 ------- Run | Scr Mat Mat Min Exi Traps Triggered . | . . . . . Indirectly . | . . . . . Trap Hack Attempts . | . . . . . Triggered . | . . . . . Disarmed . | . . . . . Reprogrammed 6 | . . 6 . . Reused . | . . . . . Traps Extracted . | . . . . . Installed . | . . . . . Triggered . | . . . . . Exploded 3 | . . . . 3 Machines | -11 -10 -9 -9 -9 ---------- Run | Scr Mat Mat Min Exi Machines Disabled 9 | . . 5 1 3 Max in Single Turn 2 | . . 2 1 1 Machines Sabotaged . | . . . . . Garrisons Compromised . | . . . . . Overloaded Fab Kills . | . . . . . Hacking | -11 -10 -9 -9 -9 --------- Run | Scr Mat Mat Min Exi Machines Accessed 16 | . 8 6 . 2 Terminals 11 | . 6 5 . . Fabricators . | . . . . . Repair Stations . | . . . . . Recycling Units 3 | . 2 1 . . Scanalyzers . | . . . . . Garrison Access . | . . . . . Total Hacks 45 | . 22 21 . 2 Successful 28 | . 10 16 . 2 Failed 16 | . 11 5 . . Catastrophic . | . . . . . Database Lockouts 1 | . 1 . . . Manual 15 | . 8 6 . 1 Terminals 40 | . 20 20 . . Fabricators . | . . . . . Repair Stations . | . . . . . Recycling Units 3 | . 2 1 . . Scanalyzers . | . . . . . Garrison Access . | . . . . . Terminal Hacks 21 | . 8 11 . 2 Record 1 | . . . . 1 Robot Analysis 1 | . 1 . . . Prototype ID Bank 1 | . 1 . . . Terminal Index 3 | . 2 1 . . Unreport Threat 1 | . . 1 . . Locate Traps 6 | . 3 3 . . Reprogram Traps 1 | . . 1 . . Hauler Manifests 2 | . . 2 . . Registered Components 1 | . 1 . . . Zone Layout 3 | . . 3 . . EX-Prototype ID Bank 1 | . . . . 1 Fabricator Hacks . | . . . . . Repair Station Hacks . | . . . . . Recycling Unit Hacks . | . . . . . Scanalyzer . | . . . . . Garrison Access Hacks . | . . . . . Unauthorized Hacks 7 | . 2 5 . . Terminals 4 | . . 4 . . Track 3 | . . 3 . . Operators 1 | . . 1 . . Fabricators . | . . . . . Repair Stations . | . . . . . Recycling Units 3 | . 2 1 . . Tunnel 3 | . 2 1 . . Scanalyzers . | . . . . . Garrison Access . | . . . . . Data Cores Recovered . | . . . . . Used . | . . . . . Hacking Detections 10 | . 5 5 . . Full Trace Events . | . . . . . Feedback Events . | . . . . . Feedback Blocked . | . . . . . Robot Schematics Acquired . | . . . . . Robots Built . | . . . . . Authchips . | . . . . . Time . | . . . . . Total Robot Build Rating . | . . . . . Part Schematics Acquired . | . . . . . Parts Built . | . . . . . Authchips . | . . . . . Time . | . . . . . Total Part Build Rating . | . . . . . Parts Repaired . | . . . . . Time . | . . . . . Parts Recycled . | . . . . . Recycled Matter . | . . . . . Retrieved Matter . | . . . . . Retrieved Components . | . . . . . Parts Scanalyzed . | . . . . . Part Schematics Acquired . | . . . . . Parts Damaged . | . . . . . Bothacking | -11 -10 -9 -9 -9 ------------ Run | Scr Mat Mat Min Exi Used RIF Installer . | . . . . . Robots Hacked . | . . . . . Non-combat . | . . . . . Combat . | . . . . . Robot Hacks Applied . | . . . . . Relay Couplers Released . | . . . . . Robots Rewired . | . . . . . Allies Hacked . | . . . . . Hacks Repelled . | . . . . . Allies | -11 -10 -9 -9 -9 -------- Run | Scr Mat Mat Min Exi Total Allies . | . . . . . Largest Group . | . . . . . Highest-Rated Group . | . . . . . Highest-Rated Ally . | . . . . . Total Orders . | . . . . . Ally Attacks . | . . . . . Total Damage . | . . . . . Kills . | . . . . . Allies Corrupted . | . . . . . Allies Melted . | . . . . . Intel | -11 -10 -9 -9 -9 ------- Run | Scr Mat Mat Min Exi Robot Analysis Total 1 | . 1 . . . Derelict Logs Recovered 1 | . . . 1 . Drone Launches . | . . . . . Drone Recoveries . | . . . . . Exploration | -11 -10 -9 -9 -9 ------------- Run | Scr Mat Mat Min Exi Turns Passed 3941 | 6 1314 1427 322 872 Spaces Moved 1927 | 1 612 642 185 487 Core . | . . . . . Treads 1451 | 1 191 587 185 487 Legs 379 | . 324 55 . . Wheels 97 | . 97 . . . Hover . | . . . . . Flight . | . . . . . Fastest Speed 115 | 160 115 160 160 160 Average Speed 166 | 160 173 165 160 160 Slowest Speed 240 | 160 240 240 160 240 Overloaded Moves . | . . . . . Propulsion Burnouts . | . . . . . Robots Hopped . | . . . . . Cave-ins Triggered . | . . . . . Exploration Rate (%) 53 | 2 92 65 44 62 Regions Visited 4 Branch Regions 2 Pre-discovered Areas 4 | . 2 1 . 1 Known Exits Taken . | . . . . . Unknown Exits Taken 4 | 1 1 1 1 . Scrap Searched 2 | . . . 2 . Spaces Dug 3 | . . . . 3 Terrain Destroyed 117 | . . 85 . 32 Melee 3 | . . . . 3 Projectile . | . . . . . AOE 114 | . . 85 . 29 Terrain Rammed . | . . . . . Walls Destroyed . | . . . . . Machines Disabled . | . . . . . Actions | -11 -10 -9 -9 -9 --------- Run | Scr Mat Mat Min Exi Total 2307 | 6 728 834 196 543 Wait 55 | . 17 24 . 14 Move 1923 | . 611 641 184 487 Hop . | . . . . . Pick Up 32 | . 16 12 1 3 Fast Attach 12 | . 4 8 . . Attach 7 | . 2 2 . 3 Detach . | . . . . . Swap 37 | 2 4 22 . 9 Drop 38 | 4 5 22 1 6 Fire 190 | . 68 102 10 10 Melee 11 | . . . . 11 Ram . | . . . . . Kick . | . . . . . Crush 2 | . 1 1 . . Escape Stasis . | . . . . . Rewire . | . . . . . Trap . | . . . . . Miscellaneous . | . . . . . Route ------- -11/Scrapyard -10/Materials (discovered 4 exits: *Mat x3 / [*Min]) -9/Materials (discovered 3 exits: [*Mat x2] / [*Min]) -9/Mines (discovered 2 exits: [*Mat] / *Exi) -9/Exiles History --------- Turn | Location | Event 7 | -11/Scrapyard | Discovered new exit (range 0) 7 | -11/Scrapyard | Entered Materials 122 | -10/Materials | Discovered new exit (range 14) 130 | -10/Materials | Central database locked down 248 | -10/Materials | Discovered new exit (range 9) 304 | -10/Materials | Build established: Mutant 661 | -10/Materials | Discovered new exit (range 7) 1004 | -10/Materials | Discovered new exit (range 15) 1321 | -10/Materials | Entered another Materials area 1321 | -9/Materials | Evolved 2 slots: Utility x2 1670 | -9/Materials | Discovered new exit (range 6) 1743 | -9/Materials | Build established: Scavenger-Mutant 2001 | -9/Materials | Discovered new exit (range 13) 2175 | -9/Materials | Core integrity fell below 50% 2415 | -9/Materials | Discovered new exit (range 16) 2521 | -9/Materials | First assault squad dispatched 2748 | -9/Materials | Entered Mines 2763 | -9/Mines | Discovered new exit (range 9) 2776 | -9/Mines | Learned Materials garrison access intel 2819 | -9/Mines | Met a Derelict bent on vengeance 3046 | -9/Mines | Deemed a non-threat by the Exiles lab entrance 3048 | -9/Mines | Discovered new exit (range 5) 3070 | -9/Mines | Entered Exiles 3110 | -9/Exiles | Met 8R-AWN 3138 | -9/Exiles | Met EX-HEX 3198 | -9/Exiles | Met EX-DEC 3213 | -9/Exiles | Learned location of Zion (-6) 3451 | -9/Exiles | Met EX-BIN 3470 | -9/Exiles | Aligned with FarCom system 3472 | -9/Exiles | Given EX-Vault access code 3510 | -9/Exiles | Opened EX-Vault 3544 | -9/Exiles | Warned to stay clear of 0b10 Research branches 3821 | -9/Exiles | Attacked by the Exiles 3929 | -9/Exiles | Core integrity fell below 20% 3942 | -9/Exiles | Destroyed by 8R-AWN with 8R-AWN's Boregun Last Messages --------------- 03923_ HV Slug penetrates Wall. 03925_ Penetrated by HV Slug. 03925_ HV Slug penetrates Wall. 03925_ Penetrated by HV Slug. 03925_ Plasma Cutter destroyed. 03925_ HV Slug penetrates Wall. 03928_ Penetrated by HV Slug. 03928_ HV Slug penetrates Wall. 03928_ HV Slug penetrates Machine. 03928_ HV Slug penetrates MZ-UM8(z). 03928_ MZ-UM8(z) suffers critical hit (Destroy). 03928_ MZ-UM8(z) destroyed. 03930_ Penetrated by HV Slug. 03930_ HV Slug penetrates Wall. 03932_ Penetrated by HV Slug. 03932_ HV Slug penetrates Wall. 03932_ Penetrated by HV Slug. 03936_ Critical hit (Destroy). 03936_ Lgt. Treads destroyed. 03938_ Penetrated by HV Slug. Map ----- +----------------------------------------------------+ | ?????????????????????????????????????????????????? | | ?????????????????????????????????????????????????? | | ?????????????????????????????????????????????????? | | ?????????????????????????????????????????????????? | | ?????????????????????????????????????????????????? | | ?????????????????????????????????????????????????? | | ?????????????????????????????????????????????????? | | ?????????????????????????????????????????????????? | | ?????????????????????????????????????????????????? | | ?????????????????????????????????????????????????? | | ??????????????????????????????????????????????#### | | ??????????????????????????????????????????????"""" | | ??????????????????????????????????????????????"""" | | ?????????????????????????????????????????????#""X" | | ????????????????????????????????????????????#" | | ???????????????????????????????????????????#" | | ???????????????????????????????????????????#"""" | | ??????????????????????????????????????????##"## | | ?????????????????????????????????????????? ??? | | # ????????????????????????????????????????????? | | # ???????????????????????????????????????????? | | ?# ?????????????#######??????????????????????? | | ?# #######??????#!!! "#??????????????????????? | | ?# #""##?????# "#??????????????????????? | | ??# #?????# g##?????????????????????? | | ??##" ##???## "@;##???????????#????????? | | ??#"" #####" # #??????????? """?????? | | ??#### ##" =%" ###??????????" """?????? | | ?????## #"" #;##???????????" ?????? | | ??????#"## # #???????????"" ?????? | | ??????##?#### #;####????????"" "#????? | | ????????????### #???????? ""?????? | | ??????########" #?????????" "??????? | | ??????# !!""""" #????# #??????? | | ??????#! "# # #?### ###?#### | | ??????#! ] "# # # ###X# #"###""" | | ??????#! ] ##### % ! """""" | | ??????# !""""""###???# "" """ | | ??????##########?????##" " " | | ??????????????????????###;# | | ????????????????????????? ## | | ????????????????????????? ??# | | ?????????????????????????????## | | ??????????????????????????????## | | ???????????????????????????????#"" | | ???????????????????????????????#" | | ??????????????????????????????#"" ""# | | ??????????????????????????????#""" """## | | ??????????????????????????????""" """##? | | ??????????????????????????????""" ""#?? | +----------------------------------------------------+ Best States ------------- Heat Dissipation 58 Energy Generation 14 Energy Capacity 280 Matter Stores 320 Matter Capacity 500 Sight Range 16 Robot Scan Range 14 Terrain Scan Density 10 Armor Coverage 300 Evasion (%) 40 Recoil Reduction 2 Salvage Targeting 1 Item Schematics ----------------- None Robot Schematics ------------------ None Fabricated ------------ Nothing Alien Tech Used ----------------- None Achievements -------------- None Challenges ------------ None Game ------ Seed ReinforcedFluxMembrane Manual? 0 Play Time 00:23:09 Cumulative 445.0 hours Start 2021.11.07 @ 01:28:47 End 2021.11.07 @ 01:47:59 Sessions 1 Manual Loads 0 Difficulty Rogue Special Mode None Game No. 444 Rogue 444 Adventurer 0 Explorer 0 Win Type - Total 8 Types 7/0/0/1/0/0/0/0/0 Lore% 80 Gallery% 92 Achievement% 69 Wizard Run 0 Options --------- ASCII 0 Keyboard 0 Movement Mouse Keybinds 1 Fullscreen 2 Font 24/Smallcaps Map View 76x50 Tactical HUD 1 Map Filters NONE Filters NONE Steam 1 RUN: 6ae6b315-759c-4754-824f-f6ed96b447f0